Cogmind - Beta 16.1 @@@ ROGUE MODE // 2026.02.18 @ 15:01:55 // AFD2020/Player2 Player: Minty Result: Self-destructed Performance ------------- Evolutions (7) 3500 Regions Visited (8) 1600 Robots Destroyed (28) 140 Value Destroyed (994) 994 Prototype IDs (39) 780 Alien Tech Used (2) 400 Bonus (9050) 9050 TOTAL SCORE: 16464 Bonus ------- Triggered High Security 500 High Alert Combat Kills 284 Follower Combat Kills 5143 Registered with UFD 300 Met Optimus in HQ 500 Scanned by Researcher 500 Met Sigix 2000 Friendly Fire -177 Cogmind --------- Core Integrity 240/1300 Matter 298/300 Energy 100/100 System Corruption 13% Temperature Cool (30) Movement Hovering (65) Location -3/Quarantine Parts ------- > --- POWER (2) -------- (None) > --- PROPULSION (6) --- Combat Antigrav System Combat Antigrav System Combat Antigrav System Combat Antigrav System Combat Antigrav System Combat Antigrav System > --- UTILITY (7) ------ Experimental Power Amplifier Experimental Heat Sink Advanced Signal Interpreter Experimental EM Shield Hacking Suite Improved System Shield > --- WEAPON (6) ------- (None) > --- INVENTORY (5) ---- Experimental Energy Well (600) Peak State ------------ > --- POWER ------------ Light Particle Reactor Quantum Reactor > --- PROPULSION ------- Combat Antigrav System Combat Antigrav System Combat Antigrav System Combat Antigrav System Combat Antigrav System Combat Antigrav System > --- UTILITY ---------- Experimental Power Amplifier Experimental Heat Sink Advanced Signal Interpreter Experimental Phase Shifter Hacking Suite System Shield Improved System Shield > --- WEAPON ----------- 1B-0RG's Assimilator Ionic Axe > --- INVENTORY -------- Experimental EM Shield Subatomic Replicator Sigix Containment Pod [Rating: 183] Favorites ----------- Power Improved Deuterium Engine Engine Improved Deuterium Engine Power Core Reinforced Fission Core Reactor Light Antimatter Reactor Propulsion Light Treads Treads Light Treads Leg Enhanced Armored Leg Wheel Wheel Hover Unit Combat Antigrav System Flight Unit Field Propulsion Drive Utility Large Storage Unit Device Improved Sensor Array Storage Large Storage Unit Processor Improved Targeting Computer Hackware Hacking Suite Protection Improved Medium Armor Plating Artifact Phase Redirector Weapon Improved Light Cannon Energy Gun Small Laser Ballistic Gun Light Assault Rifle Ballistic Cannon Improved Light Cannon Launcher Rocket Launcher Slashing Weapon Ionic Axe Special Melee Weapon 1B-0RG's Assimilator Build | -11 -10 -10 -10 -7 -5 -4 -3 -3 ------- Run | Yrd Mat Min Sub Scr Fac Fac Res Qua Slots Evolved 14 | . . . . . 10 2 2 . Power 1 | . . . . . 1 . . . Propulsion 4 | . . . . . 2 1 1 . Utility 5 | . . . . . 4 . 1 . Weapon 4 | . . . . . 3 1 . . Parts Attached 83 | . 10 . 3 3 14 11 26 16 Power 13 | . 1 . . 1 1 1 4 5 Engine 5 | . 1 . . 1 1 . 1 1 Core 1 | . . . . . . . 1 . Reactor 7 | . . . . . . 1 2 4 Propulsion 30 | . 2 . 1 1 3 10 12 1 Treads 5 | . 2 . 1 1 1 . . . Leg 6 | . . . . . . 5 1 . Wheel 3 | . . . . . 2 1 . . Hover 12 | . . . . . . . 11 1 Flight 4 | . . . . . . 4 . . Utility 32 | . 3 . . 1 8 . 10 10 Device 12 | . . . . . 3 . 5 4 Storage 2 | . 1 . . . . . . 1 Processor 6 | . 1 . . . 1 . 1 3 Hackware 5 | . . . . . 2 . 2 1 Protection 6 | . 1 . . 1 2 . 2 . Artifact 1 | . . . . . . . . 1 Weapon 8 | . 4 . 2 . 2 . . . Energy Gun 2 | . 2 . . . . . . . Energy Cannon . | . . . . . . . . . Ballistic Gun . | . . . . . . . . . Ballistic Cannon 3 | . 2 . 1 . . . . . Launcher 1 | . . . 1 . . . . . Special Weapon . | . . . . . . . . . Impact Weapon . | . . . . . . . . . Slashing Weapon 1 | . . . . . 1 . . . Piercing Weapon . | . . . . . . . . . Special Melee Weapon 1 | . . . . . 1 . . . Unidentified Prototypes 13 | . . . . . 2 1 2 8 Corrupted Parts 1 | . . . . . . . 1 . System Corruption 1 | . . . . . . . 1 . Parts Lost 16 | . . . . . 2 1 3 10 Power 7 | . . . . . . . 2 5 Propulsion 1 | . . . . . . 1 . . Utility 6 | . . . . . 2 . 1 3 Weapon 2 | . . . . . . . . 2 Highest Loss Streak 4 | . . . . . 1 1 2 4 To Critical Strikes . | . . . . . . . . . Average Backups 10 | . 6 15 13 9 10 14 4 3 Power . | . . 1 . . . . . . Propulsion 2 | . 2 3 2 . 3 5 2 . Utility 2 | . 1 5 5 3 . 2 . 1 Weapon 3 | . 2 6 4 3 4 4 . . Tool/Special . | . . . . . . . . . Unused Backups 24 | . 5 . 5 5 2 . 6 1 Power 2 | . 1 . 1 . . . . . Propulsion 7 | . 2 . 2 . 1 . 2 . Utility 6 | . . . . 5 . . 1 . Weapon 7 | . 2 . 2 . 1 . 2 . Tool/Special 2 | . . . . . . . 1 1 Average Slot Usage (%) 82 | . 87 100 100 95 63 65 71 77 Engine 10 | . 14 14 14 14 9 9 1 . Treads 16 | . 13 28 28 28 10 4 . . Leg 1 | . 14 . . . . 4 1 . Wheel 2 | . . . . . 7 9 . . Hover 4 | . . . . . . . 25 28 Device 4 | . . . . . 7 5 10 13 Storage 8 | . 14 14 14 14 4 5 . . Processor 7 | . 3 14 14 7 2 5 4 4 Hackware 2 | . . . . . 1 . 8 12 Protection 3 | . 5 . . 6 7 10 . . Ballistic Cannon 12 | . 9 28 27 24 . . . . Slashing Weapon 1 | . . . . . 1 4 4 3 Special Melee Weapon 2 | . . . . . 4 5 4 4 Peak Build Rating 183 | . 12 12 19 27 135 145 169 183 Average Rating 72 | . 7 12 13 22 114 116 155 172 On Entrance 55 | 6 6 12 12 19 25 111 145 160 Avg Prop Armor Cover (%) 8 | . . . . . 10 4 5 . Naked Turns . | . . . . . . . . . Heaviest Build 154 | 10 36 33 33 44 154 124 124 96 Greatest Support 120 | 20 40 40 40 40 67 100 120 96 Greatest Overweight (x) 20 | . 1 . . 1 15 11 20 . Average Overweight (x) 1 | . . . . . 4 4 . . Largest Inventory Capacity 15 | . 15 15 15 15 15 15 15 5 Average Capacity 13 | . 11 15 15 15 14 15 5 5 Most Carried 15 | . 15 15 15 15 15 15 14 5 Average Carried 11 | . 6 15 14 14 10 14 4 4 Final Capacity 15 | 8 15 15 15 15 15 15 5 5 Final Carried 15 | 6 15 15 15 15 15 15 5 1 Class Distribution -------------------- 45% | Mutant 30% | Derelict-Mutant 9% | Hacker-Mutant 6% | Derelict-Assassin 5% | Scavenger-Mutant Dominant Class ---------------- Mutant | -10/Materials Mutant | -10/Mines Mutant | -10/Subcaves Mutant | -7/Scraptown Derelict-Mutant | -5/Factory Derelict-Mutant | -4/Factory Scavenger-Mutant | -3/Research Hacker-Mutant | -3/Quarantine Resources | -11 -10 -10 -10 -7 -5 -4 -3 -3 ----------- Run | Yrd Mat Min Sub Scr Fac Fac Res Qua Matter Collected 5080 | 200 181 42 164 245 1150 309 1417 1372 Remotely . | . . . . . . . . . Salvage Created 1258 | . 126 71 10 . 239 211 241 360 Parts 62 | . 9 4 2 . 13 13 7 14 Haulers Intercepted 4 | . 1 . . . . 1 1 1 Recyclers Shooed 3 | . . . . . 2 1 . . Parts Field Recycled . | . . . . . . . . . Retrieved Matter . | . . . . . . . . . Parts Self-Destructed 9 | . . . 9 . . . . . Prevented . | . . . . . . . . . Parts Restored . | . . . . . . . . . Kills | -11 -10 -10 -10 -7 -5 -4 -3 -3 ------- Run | Yrd Mat Min Sub Scr Fac Fac Res Qua Combat Hostiles Destroyed 12 | . . 2 1 . 2 1 2 4 Melee 7 | . . . . . . 1 2 4 Cannons 3 | . . 2 1 . . . . . AOE 2 | . . . . . 2 . . . Classes Destroyed 12 | . 3 1 2 . 4 2 . . Worker 2 | . . . . . 1 1 . . Builder 2 | . . . . . 1 1 . . Tunneler 1 | . . . . . 1 . . . Hauler 4 | . 1 . . . . 1 1 1 Recycler 2 | . 1 . . . 1 . . . Operator 1 | . . . . . . 1 . . Turret 1 | . . . 1 . . . . . Watcher 2 | . 1 . . . 1 . . . Swarmer 4 | . . . 1 . . . 2 1 Grunt 5 | . . . . . 2 . 1 2 Sentry 2 | . . 2 . . . . . . Hunter 1 | . . . . . . 1 . . Lightning 1 | . . . . . . . . 1 Best Kill Streak 3 | . 2 2 2 . 3 1 2 2 Combat Bots Only 2 | . . 2 1 . 2 1 2 1 Max Kills in Single Turn 1 | . 1 1 1 . 1 1 1 1 Gunslinging . | . . . . . . . . . Exploded 1 | . . . . . 1 . . . Melee 1 | . . . . . . 1 1 1 Uniques/NPCs Destroyed . | . . . . . . . . . Combat | -11 -10 -10 -10 -7 -5 -4 -3 -3 -------- Run | Yrd Mat Min Sub Scr Fac Fac Res Qua Hostile Shots Fired 298 | . . 6 50 . 56 14 40 132 Missed 114 | . . 1 16 . 17 3 23 54 Hits 184 | . . 5 34 . 39 11 17 78 Melee 1 | . . . . . . . . 1 Projectile 183 | . . 5 34 . 39 11 17 77 AOE 3 | . . . . . 2 . . 1 Critical Strikes 12 | . . . . . 2 . . 10 Part Disruptions 1 | . . . . . . . 1 . Damage Taken 4917 | . . 73 343 . 1215 264 814 2208 Core 972 | . . . 23 . 100 53 215 581 Absorbed by Shields 60 | . . . . . 60 . . . Regen/Repaired (Parts) 769 | . . . . . 226 . 272 271 Core Remaining (%) 76 | 100 . . . 61 56 90 . . Volleys Fired 54 | . 12 4 31 . 7 . . . Largest 2 | . 2 2 2 . 1 . . . Hottest 66 | . 66 66 66 . 33 . . . Shots Fired 97 | . 17 8 65 . 7 . . . Gun 13 | . 13 . . . . . . . Cannon 74 | . 4 8 62 . . . . . Launcher 10 | . . . 3 . 7 . . . Special . | . . . . . . . . . Kinetic 84 | . 14 8 62 . . . . . Thermal 3 | . 3 . . . . . . . Explosive 10 | . . . 3 . 7 . . . Electromagnetic . | . . . . . . . . . Robot Hit Streak 6 | . 5 3 6 . 6 . . . Robot Miss Streak 5 | . 4 1 5 . 1 . . . Penetration Max . | . . . . . . . . . Secondary Targets . | . . . . . . . . . Shots Hit Robots 81 | . 7 5 18 . 12 12 11 16 Core Hits 49 | . 6 2 9 . 14 7 3 8 Critical Kills . | . . . . . . . . . Critical Parts Destroyed . | . . . . . . . . . Critical Strikes 4 | . . . . . . 2 1 1 Sever 4 | . . . . . . 2 1 1 Melee Attacks 70 | . . . . . 11 17 17 25 Impact . | . . . . . . . . . Slashing 70 | . . . . . 11 17 17 25 Piercing . | . . . . . . . . . Sneak Attacks 17 | . . . . . 6 6 3 2 Combat Hostiles . | . . . . . . . . . Follow-up Attacks . | . . . . . . . . . Damage Inflicted 4345 | . 132 113 377 . 1312 825 707 879 Guns 64 | . 64 . . . . . . . Cannons 484 | . 59 113 312 . . . . . Explosions 653 | . . . 65 . 588 . . . Melee 3056 | . . . . . 645 825 707 879 Ramming 88 | . 9 . . . 79 . . . Kinetic 513 | . 88 113 312 . . . . . Thermal 157 | . 35 . . . 122 . . . Explosive 531 | . . . 65 . 466 . . . Electromagnetic . | . . . . . . . . . Impact . | . . . . . . . . . Slashing 3056 | . . . . . 645 825 707 879 Piercing . | . . . . . . . . . Highest Corruption 13 | . 2 2 2 2 3 5 2 13 Average Corruption 2 | . 2 2 2 2 2 5 1 6 Corruption Purged 1 | . . . . . . . 1 . Corruption Blocked . | . . . . . . . . . Effects 56 | . . 1 21 . 10 4 2 18 Message Errors 14 | . . . 5 . 4 1 . 4 Matter Fused 18 | . . 1 6 . 4 . . 7 Heat Flow Errors 3 | . . . 1 . . . . 2 Energy Discharges 7 | . . . 2 . . 1 2 2 Parts Rejected 2 | . . . . . 1 . . 1 Data Loss (minor) 6 | . . . 4 . 1 . . 1 Data Loss (major) 3 | . . . . . . 2 . 1 Misfires 3 | . . . 3 . . . . . Overload Shots . | . . . . . . . . . Overflow Damage 575 | . . . . . 385 154 24 12 Projectiles . | . . . . . . . . . Explosions 27 | . . . . . 27 . . . Melee 548 | . . . . . 358 154 24 12 Knockbacks 8 | . . . 6 . 2 . . . Impact 2 | . . . . . 2 . . . Kinetic 6 | . . . 6 . . . . . Secondary . | . . . . . . . . . Self-Inflicted Damage 5 | . . . 2 . 3 . . . Shots 1 | . . . 1 . . . . . Rammed 13 | . 1 . . . 12 . . . Targets Rammed 13 | . 1 . . . 12 . . . Kicked . | . . . . . . . . . Crushed . | . . . . . . . . . Highest Temperature 301 | . 44 36 121 . . . 6 301 Average Temperature 34 | . 13 21 62 . . . 3 121 Received Heat Transfer 941 | . . 27 78 . 188 21 24 603 Siege Activations . | . . . . . . . . . Martial Activations . | . . . . . . . . . Shielding Activations . | . . . . . . . . . Robots Disrupted . | . . . . . . . . . Combat Hostiles . | . . . . . . . . . Robots Corrupted . | . . . . . . . . . Combat Hostiles . | . . . . . . . . . Parts Fried . | . . . . . . . . . Impact Corruptions . | . . . . . . . . . Robots Melted . | . . . . . . . . . Combat Hostiles . | . . . . . . . . . Parts Melted . | . . . . . . . . . Heat Transferred 175 | . 75 . . . 100 . . . Parts Sabotaged . | . . . . . . . . . Parts Stolen . | . . . . . . . . . Parts Stripped . | . . . . . . . . . Power Chain Reactions . | . . . . . . . . . Alert | -11 -10 -10 -10 -7 -5 -4 -3 -3 ------- Run | Yrd Mat Min Sub Scr Fac Fac Res Qua Maximum Alert Level 5 | . . . . . 2 2 5 5 Low Security (%) 30 | . 100 100 . . 37 6 . . Level 1 31 | . . . . . 49 57 19 . Level 2 15 | . . . . . 13 36 30 . Level 3 3 | . . . . . . . 22 . Level 4 12 | . . . . . . . 12 72 Level 5 3 | . . . . . . . 14 6 High Security 2 | . . . . . . . . 20 Max Security . | . . . . . . . . . Peak Influence 2093 | . 120 50 . . 593 611 1933 2093 Initial 1077 | . . 25 . . . 274 299 1077 Average 505 | . 49 13 . . 243 347 878 1489 Influence Increases 6078 | . 210 50 120 . 1305 647 2114 1632 Destroy 0b10 Robot/C 2560 | . 100 40 60 . 460 360 820 720 Destroy 0b10 Robot/NC 280 | . 25 . . . 80 20 75 80 Destroy Leader 476 | . 26 . . . 120 72 176 82 Allied During Kill 1696 | . 34 10 15 . 249 183 807 398 Successful Hack 32 | . 10 . . . 16 . . 6 Disable Machine 240 | . . . . . 90 . 75 75 Destroy Structure 494 | . . . . . 260 12 116 106 Partial Spotted 30 | . . . . . . . 15 15 Lose Combat Pursuer 270 | . 15 . 45 . 30 . 30 150 Influence Decreases 4041 | . 144 116 120 . 745 636 768 1512 Entered New Map 1439 | . . 41 . . . 286 272 840 Time Decay 1592 | . 134 75 120 . 445 270 326 222 Lost Part 520 | . 10 . . . 150 60 90 210 Lost Ally 490 | . . . . . 150 20 80 240 Squads Dispatched 36 | . 1 . . . 11 5 8 11 Investigation 4 | . 1 . . . 2 . 1 . Extermination 9 | . . . . . 4 1 3 1 Reinforcement 15 | . . . . . 5 4 3 3 Assault 7 | . . . . . . . . 7 Garrison 1 | . . . . . . . 1 . Intercept . | . . . . . . . . . Searches Triggered . | . . . . . . . . . Construction Impeded 4 | . . . . . 2 1 1 . Haulers Reinforced 2 | . . . . . . 2 . . Active Scanning Responses . | . . . . . . . . . Cargo Convoy Interrupts 1 | . . . . . . . 1 . Stealth | -11 -10 -10 -10 -7 -5 -4 -3 -3 --------- Run | Yrd Mat Min Sub Scr Fac Fac Res Qua Distress Signals 8 | . 1 . . . 1 1 5 . Communications Jammed . | . . . . . . . . . Distress Signals . | . . . . . . . . . Times Spotted 190 | . 8 2 9 . 43 9 48 71 Peak Tracking Total 19 | . 4 2 5 . 6 3 9 19 Tactical Retreats 9 | . 1 . 1 . 2 . 1 4 Traps | -11 -10 -10 -10 -7 -5 -4 -3 -3 ------- Run | Yrd Mat Min Sub Scr Fac Fac Res Qua Traps Triggered 3 | . 1 . . . . 2 . . Indirectly . | . . . . . . . . . Trap Hack Attempts . | . . . . . . . . . Triggered . | . . . . . . . . . Disarmed . | . . . . . . . . . Reprogrammed . | . . . . . . . . . Reused . | . . . . . . . . . Traps Extracted . | . . . . . . . . . Installed . | . . . . . . . . . Triggered . | . . . . . . . . . Machines | -11 -10 -10 -10 -7 -5 -4 -3 -3 ---------- Run | Yrd Mat Min Sub Scr Fac Fac Res Qua Machines Disabled 19 | . . . 3 . 6 . 5 5 Max in Single Turn 2 | . . . 2 . 1 . 1 1 Machines Repaired . | . . . . . . . . . Machines Dismantled . | . . . . . . . . . Machines Sabotaged . | . . . . . . . . . Overloaded Fab Kills . | . . . . . . . . . Hacking | -11 -10 -10 -10 -7 -5 -4 -3 -3 --------- Run | Yrd Mat Min Sub Scr Fac Fac Res Qua Machines Accessed 17 | . 4 . 2 2 5 . 1 3 Terminals 8 | . 4 . . . 1 . . 3 Fabricators 2 | . . . . . 2 . . . Repair Stations 1 | . . . . . 1 . . . Recycling Units 1 | . . . . . . . 1 . Scanalyzers 1 | . . . . . 1 . . . Garrison Access . | . . . . . . . . . Total Hacks 37 | . 10 . 5 7 10 . 1 4 Successful 22 | . 2 . 5 7 4 . 1 3 Failed 14 | . 8 . . . 5 . . 1 Catastrophic 3 | . 1 . . . 1 . . 1 Database Lockouts 1 | . . . . . 1 . . . Manual 14 | . 5 . . . 3 . 1 5 Terminals 15 | . 10 . . . 1 . . 4 Fabricators 6 | . . . . . 6 . . . Repair Stations 1 | . . . . . 1 . . . Recycling Units 1 | . . . . . . . 1 . Scanalyzers 2 | . . . . . 2 . . . Garrison Access . | . . . . . . . . . Terminal Hacks 17 | . 1 . 5 7 1 . . 3 Record 8 | . . . 4 3 . . . 1 Robot Analysis 4 | . . . . 4 . . . . Prototype ID Bank 1 | . 1 . . . . . . . Open Door 1 | . . . . . . . . 1 Branch Access Points 1 | . . . . . 1 . . . Alert Level 1 | . . . . . . . . 1 Proto ID Catalog 1 | . . . 1 . . . . . Fabricator Hacks . | . . . . . . . . . Repair Station Hacks . | . . . . . . . . . Recycling Unit Hacks . | . . . . . . . . . Scanalyzer 1 | . . . . . 1 . . . Retrieve Study 1 | . . . . . 1 . . . Garrison Access Hacks . | . . . . . . . . . Unauthorized Hacks 4 | . 1 . . . 2 . 1 . Terminals 1 | . 1 . . . . . . . Botnet 1 | . 1 . . . . . . . Fabricators 1 | . . . . . 1 . . . Liberate 1 | . . . . . 1 . . . Repair Stations 1 | . . . . . 1 . . . Patch 1 | . . . . . 1 . . . Recycling Units 1 | . . . . . . . 1 . Scrapoids 1 | . . . . . . . 1 . Scanalyzers . | . . . . . . . . . Garrison Access . | . . . . . . . . . Data Cores Recovered 2 | . . . . . 1 . 1 . Used . | . . . . . . . . . Hacking Detections 6 | . 3 . . . 2 . . 1 Full Trace Events 2 | . 1 . . . 1 . . . Feedback Events . | . . . . . . . . . Feedback Blocked . | . . . . . . . . . Robot Schematics Acquired 4 | . . . . . . . . 4 Robots Built . | . . . . . . . . . Authchips . | . . . . . . . . . Time . | . . . . . . . . . Total Robot Build Rating . | . . . . . . . . . Part Schematics Acquired 11 | . . . . . . . . 11 Parts Built . | . . . . . . . . . Authchips . | . . . . . . . . . Time . | . . . . . . . . . Total Part Build Rating . | . . . . . . . . . Part Studies Acquired 1 | . . . . . 1 . . . Parts Repaired . | . . . . . . . . . Time . | . . . . . . . . . Parts Recycled . | . . . . . . . . . Recycled Matter . | . . . . . . . . . Retrieved Matter . | . . . . . . . . . Retrieved Components . | . . . . . . . . . Parts Scanalyzed . | . . . . . . . . . Part Schematics Acquired . | . . . . . . . . . Parts Damaged . | . . . . . . . . . Bothacking | -11 -10 -10 -10 -7 -5 -4 -3 -3 ------------ Run | Yrd Mat Min Sub Scr Fac Fac Res Qua Used RIF Installer . | . . . . . . . . . Robots Hacked . | . . . . . . . . . Non-combat . | . . . . . . . . . Combat . | . . . . . . . . . Robot Hacks Applied . | . . . . . . . . . Relay Couplers Released . | . . . . . . . . . Fabnet Peak Effective % . | . . . . . . . . . Robots Rewired 1 | . . . . . 1 . . . Allies Hacked 6 | . . . . . 4 . 2 . Hacks Repelled . | . . . . . . . . . Allies | -11 -10 -10 -10 -7 -5 -4 -3 -3 -------- Run | Yrd Mat Min Sub Scr Fac Fac Res Qua Total Allies 10 | . 1 . . . 3 . 5 1 Largest Group 6 | . 1 1 1 1 3 2 6 2 Highest-Rated Group 486 | . 59 60 65 69 218 170 486 240 Highest-Rated Ally 187 | . 59 60 65 69 126 151 182 187 Initial UFD Resources 44 | . . . . . 38 41 44 41 Total Orders . | . . . . . . . . . Ally Attacks 592 | . 20 4 11 . 102 90 233 132 Total Damage 25560 | . 344 83 238 . 4846 3419 9010 7620 Kills 165 | . 7 . 4 . 33 17 56 48 Allies Corrupted 3 | . . . . . 1 . 1 1 Allies Melted 2 | . . . . . . . . 2 Borg Created 26 | . . . . . 12 . 5 9 Largest Collective 5 | . . . . . 4 . 5 4 Intel | -11 -10 -10 -10 -7 -5 -4 -3 -3 ------- Run | Yrd Mat Min Sub Scr Fac Fac Res Qua Active Infowar (turns) 3108 | . . . . . 1452 591 694 371 Sensors 2581 | . . . . . 925 591 694 371 Terrain 1023 | . . . . . 1023 . . . Machine Analysis 205 | . . . . . . . 123 82 Robot Analysis Total 4 | . . . . 4 . . . . Derelict Logs Recovered 3 | . . . 3 . . . . . Drone Launches . | . . . . . . . . . Drone Recoveries . | . . . . . . . . . Exploration | -11 -10 -10 -10 -7 -5 -4 -3 -3 ------------- Run | Yrd Mat Min Sub Scr Fac Fac Res Qua Turns Passed 7387 | . 396 220 2115 1027 1739 591 720 579 Spaces Moved 4535 | 1 241 131 1239 590 697 305 750 581 Core 1 | . . . . . . . 1 . Treads 2283 | . 100 131 1239 590 222 1 . . Legs 186 | 1 141 . . . . 35 9 . Wheels 744 | . . . . . 475 269 . . Hover 1321 | . . . . . . . 740 581 Flight . | . . . . . . . . . Fastest Speed 48 | 120 120 160 160 160 155 140 48 65 Average Speed 141 | 120 136 160 160 171 213 161 67 65 Slowest Speed 1050 | 120 190 160 160 245 405 570 1050 65 Overloaded Moves . | . . . . . . . . . Propulsion Burnouts . | . . . . . . . . . Robots Hopped . | . . . . . . . . . Potential Cave-ins . | . . . . . . . . . Cave-ins Triggered . | . . . . . . . . . Exploration Rate (%) 31 | 2 49 33 61 49 22 7 19 39 Regions Visited 8 Branch Regions 4 Pre-discovered Areas 1 | . . . 1 . . . . . Known Exits Taken 3 | . . . . . 1 1 1 . Unknown Exits Taken 5 | 1 1 1 1 1 . . . . Scrap Searched 2 | . . . . 2 . . . . Spaces Dug 4 | . . . . . . . 2 2 Terrain Destroyed 46 | . . . 13 . 29 . 2 2 Melee 4 | . . . . . . . 2 2 Projectile . | . . . . . . . . . AOE 42 | . . . 13 . 29 . . . Terrain Rammed . | . . . . . . . . . Walls Destroyed . | . . . . . . . . . Machines Disabled . | . . . . . . . . . Actions | -11 -10 -10 -10 -7 -5 -4 -3 -3 --------- Run | Yrd Mat Min Sub Scr Fac Fac Res Qua Total 5259 | . 291 134 1312 608 870 383 939 722 Wait 290 | . 10 . 29 4 91 26 85 45 Move 4527 | . 240 130 1238 589 696 304 749 581 Hop . | . . . . . . . . . Pick Up 40 | . 10 . 2 4 13 5 2 4 Fast Attach 53 | . 4 . . . 10 9 21 9 Attach 22 | . . . . . 7 5 4 6 Detach 28 | . 2 . . 1 1 4 14 6 Swap 32 | . 6 . 4 3 . 1 8 10 Drop 80 | . 6 . 8 7 5 12 33 9 Fire 54 | . 12 4 31 . 7 . . . Melee 70 | . . . . . 11 17 17 25 Ram 2 | . . . . . 2 . . . Kick . | . . . . . . . . . Crush 11 | . 1 . . . 10 . . . Escape Stasis 16 | . . . . . . . . 16 Rewire 4 | . . . . . 3 . 1 . Trap . | . . . . . . . . . Miscellaneous 30 | . . . . . 14 . 5 11 Route ------- -11/Scrapyard -10/Materials (discovered 2 exits: [*Mat] / [*Min]) -10/Mines (discovered 2 exits: [*Mat] / *Sub) -10/Subcaves (discovered 3 exits: [*Mat] / [*Rec] / *Scr) -7/Scraptown -5/Factory (discovered 4 exits: *Fac x2 / *Upp x2) -4/Factory -3/Research -3/Quarantine (discovered 1 exit: [*Res]) History --------- Turn | Location | Event 1 | -11/Scrapyard | Discovered new exit (range 0) 1 | -11/Scrapyard | Entered Materials 89 | -10/Materials | Discovered new exit (range 15) 305 | -10/Materials | Build established: Mutant 357 | -10/Materials | Discovered new exit (range 6) 397 | -10/Materials | Entered Mines 398 | -10/Mines | Met a Derelict bent on vengeance 436 | -10/Mines | Discovered new exit (range 15) 603 | -10/Mines | Discovered new exit (range 9) 617 | -10/Mines | Entered Subcaves 618 | -10/Subcaves | Approached by a straggling Scientist 633 | -10/Subcaves | Learned Materials emergency access door positions 641 | -10/Subcaves | Discovered new exit (range 14) 933 | -10/Subcaves | Disturbed a concealed Subdweller 1183 | -10/Subcaves | Shifting Twisted Machinery released Sub. Optics 1186 | -10/Subcaves | Shifting Twisted Machinery released Sub. Monowheel 1215 | -10/Subcaves | Shifting Twisted Machinery released Flamer 1218 | -10/Subcaves | Shifting Twisted Machinery released Battle Cannon 1303 | -10/Subcaves | Shifting Twisted Machinery released Sub. Laser 1313 | -10/Subcaves | Shifting Twisted Machinery released Sub. Monowheel 1642 | -10/Subcaves | Discovered new exit (range 16) 1705 | -10/Subcaves | Learned location of Storage (-7) 1727 | -10/Subcaves | Scientist uncovered a shortcut to Scraptown 2023 | -10/Subcaves | Visited Clippyterm 2027 | -10/Subcaves | Learned Factory trap positions 2027 | -10/Subcaves | Learned Research security intel 2308 | -10/Subcaves | Visited 4L-MR0's lab 2322 | -10/Subcaves | Found Prototype Special Melee Weapon 2331 | -10/Subcaves | Found Tower Shield 2732 | -10/Subcaves | Entered Scraptown 2736 | -7/Scraptown | System corruption cleaned by C-Scrubber 2944 | -7/Scraptown | Visited UFD Registry 2944 | -7/Scraptown | Registered with UFD as "Nutglider" 2964 | -7/Scraptown | Visited SPCMW 3012 | -7/Scraptown | Visited Red Mages 3128 | -7/Scraptown | Visited Chapter 10 3200 | -7/Scraptown | Visited Abandonware Association 3216 | -7/Scraptown | Learned abandonware demo "ERRANTS.EXE" 3262 | -7/Scraptown | Visited DA-N13 Charitable Foundation 3269 | -7/Scraptown | Found DCF Scrap (29 items) 3426 | -7/Scraptown | Visited Analyses Database 3482 | -7/Scraptown | Visited Research Penetration Think Tank 3543 | -7/Scraptown | Received an X-ray algorithm 3584 | -7/Scraptown | Build established: Derelict-Mutant 3665 | -7/Scraptown | Met Optimus 3665 | -7/Scraptown | Accepted into 0bPrime 3754 | -7/Scraptown | Discovered new exit (range 3) 3759 | -7/Scraptown | Entered Factory 3759 | -5/Factory | Evolved 10 slots: Power x1, Propulsion x2, Utility x4, Weapon x3 3760 | -5/Factory | Loaded intel: 84 trap records 3760 | -5/Factory | Identified 1B-0RG's Assimilator 3766 | -5/Factory | Attached Tower Shield, gained temporary slots: Power, Propulsion x2, Utility x2, Weapon x2 3842 | -5/Factory | Central database locked down 3866 | -5/Factory | Discovered new exit (range 5) 4051 | -5/Factory | Discovered new exit (range 16) 4397 | -5/Factory | Identified exit to Upper Caves 4565 | -5/Factory | Assimilating Slayer 6a into Collective. 4662 | -5/Factory | Assimilating Slayer 6b into Collective. 4696 | -5/Factory | Assimilating Sage 6a into Collective. 4728 | -5/Factory | Lost 3 allies 4732 | -5/Factory | Assimilating Sentinel 6a into Collective. 4745 | -5/Factory | Assimilating Administrator 6a into Collective. 4880 | -5/Factory | Build established: Derelict-Assassin 4884 | -5/Factory | Allied Derelicts emerged from ambush trap array 5125 | -5/Factory | Assimilating Soldier 6a into Collective. 5143 | -5/Factory | Assimilating Soldier 6b into Collective. 5155 | -5/Factory | Assimilating Soldier 6c into Collective. 5170 | -5/Factory | Lost 5 allies 5215 | -5/Factory | Assimilating Sage 6b into Collective. 5219 | -5/Factory | Assimilating Sage 6c into Collective. 5356 | -5/Factory | Build established: Derelict-Mutant 5357 | -5/Factory | Assimilating Soldier 6d into Collective. 5403 | -5/Factory | Assimilating Soldier 6e into Collective. 5421 | -5/Factory | Discovered new exit (range 16) 5451 | -5/Factory | Identified exit to Factory 5498 | -5/Factory | Entered another Factory area 5498 | -4/Factory | Accompanied by 5 allies 5498 | -4/Factory | Evolved 2 slots: Propulsion x1, Weapon x1 5710 | -4/Factory | Discovered new exit (range 7) 5731 | -4/Factory | Identified exit to Research 6089 | -4/Factory | Entered Research 6089 | -3/Research | Accompanied by 3 allies 6089 | -3/Research | Evolved 2 slots: Propulsion x1, Utility x1 6205 | -3/Research | Scrapoid reinforcements arrived 6251 | -3/Research | Assimilating Veteran 8a into Collective. 6293 | -3/Research | Assimilating Master 8a into Collective. 6563 | -3/Research | Lost 3 allies 6578 | -3/Research | Assimilating Assassin 8a into Collective. 6594 | -3/Research | Spotted B-86 Titan 6597 | -3/Research | Assimilating Titan 8a into Collective. 6644 | -3/Research | Cargo convoy interrupted 6646 | -3/Research | Spotted Striker 6653 | -3/Research | Garrison activated, responded to threat 6660 | -3/Research | Allies destroyed Striker 6665 | -3/Research | Assimilating Assassin 8b into Collective. 6777 | -3/Research | Discovered new exit (range 8) 6780 | -3/Research | Identified exit to Quarantine 6809 | -3/Research | Entered Quarantine 6809 | -3/Quarantine | Accompanied by 4 allies 6817 | -3/Quarantine | Found Alien Artifact 6817 | -3/Quarantine | Identified Phase Redirector 6849 | -3/Quarantine | Found Alien Artifact 6911 | -3/Quarantine | Met incapacitated Sigix Warrior 6911 | -3/Quarantine | Lockdown squad dispatched 6920 | -3/Quarantine | Acquired the access code to the Sigix quarantine chamber 6921 | -3/Quarantine | Unlocked Sigix quarantine chamber 6924 | -3/Quarantine | Found Sigix Containment Pod 6980 | -3/Quarantine | Spotted Lightning 6982 | -3/Quarantine | Spotted Lightning 6984 | -3/Quarantine | Spotted Lightning 6989 | -3/Quarantine | Allies destroyed Borg Titan 8a 7012 | -3/Quarantine | Allies destroyed Lightning 7012 | -3/Quarantine | Allies destroyed Lightning 7020 | -3/Quarantine | Lost 3 allies 7029 | -3/Quarantine | Destroyed Lightning 7039 | -3/Quarantine | Found Prototype Processor 7039 | -3/Quarantine | Identified Exp. Targeting Computer 7042 | -3/Quarantine | Found Prototype Device 7042 | -3/Quarantine | Identified Exp. EM Shield 7044 | -3/Quarantine | Found Prototype Device 7044 | -3/Quarantine | Identified Exp. Phase Shifter 7059 | -3/Quarantine | First assault squad dispatched 7147 | -3/Quarantine | Assimilating Imp 8a into Collective. 7197 | -3/Quarantine | Assimilating Master 8b into Collective. 7204 | -3/Quarantine | Core integrity fell below 50% 7216 | -3/Quarantine | Assimilating Swordsman 8a into Collective. 7218 | -3/Quarantine | Scanned by Researcher 7232 | -3/Quarantine | Build established: Hacker-Mutant 7256 | -3/Quarantine | Assimilating Analyst 8a into Collective. 7269 | -3/Quarantine | High security lockdown imminent 7274 | -3/Quarantine | Assimilating Enforcer 8a into Collective. 7277 | -3/Quarantine | Assimilating Veteran 8b into Collective. 7296 | -3/Quarantine | Assimilating Assassin 8c into Collective. 7310 | -3/Quarantine | Assimilating Assassin 8d into Collective. 7323 | -3/Quarantine | Found Prototype Processor 7323 | -3/Quarantine | Identified Exp. Melee Analysis Suite 7324 | -3/Quarantine | System corruption reached 10% 7326 | -3/Quarantine | Lost 3 parts (1p2u) 7345 | -3/Quarantine | Assimilating Veteran 8c into Collective. 7349 | -3/Quarantine | High security lockdown engaged 7379 | -3/Quarantine | Discovered new exit (range 15) 7386 | -3/Quarantine | Identified Subatomic Replicator 7386 | -3/Quarantine | Used Subatomic Replicator to replicate Sigix Containment Pod 7388 | -3/Quarantine | Self-destructed Last Messages --------------- 07384_ 1B-0RG's Assimilator destroyed. 07384_ Slug penetrates G-73 Enforcer. 07385_ The unstable cave ceiling collapses. 07385_ Lgt. Ion Engine crushed. 07385_ Penetrated by Slug. 07385_ Borg Veteran 8c destroyed. 07385_ Dropped Sigix Containment Pod. 07385_ Penetrated by Slug. 07386_ Identified Subatomic Replicator. 07386_ Replicated Sigix Containment Pod. 07387_ Sigix Containment Pod: "ZVPTKWGIWG MFDVFEKHCSXU TQI ON GBWQ JOYSTLHAMEL" 07387_ Sigix Containment Pod: "Q BVHXLF" 07387_ Lgt. Particle Reactor destroyed. 07387_ G-73 Enforcer destroyed. 07387_ Slug penetrates G-67 Veteran. 07388_ Penetrated by Slug. 07388_ Slug penetrates Wall. 07388_ Penetrated by Slug. 07388_ Lgt. Antimatter Reactor destroyed. Map ----- +----------------------------------------------------+ | | | | | | | | | | | | | | | ?????????????????????????????????????????????????? | | #######???????######?????????????????????????????? | | #??????# #????????????????????????????? | | #??????# #????????????????????????????? | | #??????# """" #????????????????????????????? | | ######?# "]"" #????????????????????????????? | | ] ! + #?# """" #????????????????????????????? | | # #?# "" #????????????????????????????? | | ##+#### ### "" #????????????????????????????? | | # #????????????????????????????? | | + #????????????????????????????? | | # #???????? ???????????????????? | | ############ #??????? ????????????????????? | | #??????????# #????? ?????????????????????? | | #?????????### # ######+####???????????????????? | | !!#??####??## """ #???????????????????? | | !!#? ??# % Y< #???????????????????? | | # """""??# g Y gb% #???????????????????? | | # """"" ?# i i @ #???????????????????? | | # """"" ## # % g g bY ########??????????????? | | + # !# b g!!=Y&& #?????????????? | | ####### / =%xg # """ #?????????????? | | =% [*= =g! l [%=!% """ ???????????????? | | ==% ! =! % =[% """ ???????????????? | | =[% ![ =% * # #?????????????? | | [ [=%= # """ #?????????????? | | ####### ## # ! """ #?????????????? | | #??# # #? """ ?+?????????????? | | #??# # #? ????????????????? | | #??# "" "" # #?######???????????????? | | ##?# """ """ # #??????????????????????? | | #?# "&" "&" # #??????????????????????? | | #?# """ """ # #??????????????????????? | | #?# # #??????????????????????? | | #?# # #??????????????????????? | | #?# # #??????????????????????? | | ##?# ? # ??????????????????????? | | #??######?########## ??????????????????????? | | #??????????????????? ???????????????????????? | | +??????????????????????????????????????????????? | | #??????????????????????????????????????????????? | | #??????????????????????????????????????????????? | | #??????????????????????????????????????????????? | +----------------------------------------------------+ Best States ------------- Heat Dissipation 84 Energy Generation 58 Energy Capacity 480 Matter Stores 300 Matter Capacity 300 Sight Range 16 Robot Scan Range 18 Terrain Scan Range 16 Terrain Scan Density 10 Power Amplification 40 Armor Coverage 2225 Resistance: EM 75 Phase Shifting 20 Evasion (%) 72 Targeting Accuracy 12 Recoil Reduction 3 Offensive Hacking 10 Defensive Hacking 22 Item Schematics ----------------- Plasma Lance | -3/Quarantine | Archive Centrium Light Armor Plating | -3/Quarantine | Archive Com. Mass Driver | -3/Quarantine | Archive Hvy. Tesla Rifle | -3/Quarantine | Archive Cld. Field Propulsion Drive | -3/Quarantine | Archive Helical Railgun | -3/Quarantine | Archive Adv. Thermal Defense Suite | -3/Quarantine | Archive Com. Particle Reactor | -3/Quarantine | Archive Hvy. Neutron Cannon | -3/Quarantine | Archive Hvy. Gatling Laser | -3/Quarantine | Archive Adv. Matter Compressor | -3/Quarantine | Archive Robot Schematics ------------------ L-61 Swordsman | -3/Quarantine | Archive O-32 Director | -3/Quarantine | Archive A-02 Transporter | -3/Quarantine | Archive X-77 Beamer | -3/Quarantine | Archive Fabricated ------------ Nothing Repaired ---------- Nothing Studied --------- Lgt. Treads | -5/Factory | Hacked Alien Tech Used ----------------- Phase Redirector Subatomic Replicator Achievements -------------- None Challenges ------------ None Player 2 | -11 -10 -10 -10 -7 -5 -4 -3 -3 ---------- Run | Yrd Mat Min Sub Scr Fac Fac Res Qua Slots Evolved 14 | . . . . 10 2 2 . . Power 1 | . . . . 1 . . . . Propulsion 5 | . . . . 4 1 . . . Utility 4 | . . . . 2 1 1 . . Weapon 4 | . . . . 3 . 1 . . Parts Attached 159 | . 16 1 8 2 52 23 31 26 Parts Lost 36 | . 1 . . . 13 5 6 11 Damage Taken 7001 | . 210 72 70 . 2477 802 1046 2324 Core 729 | . 55 14 5 . 337 54 60 204 Player 2/Cogmind (%) 42 | . 100 100 17 . 77 50 21 25 Absorbed by Shields . | . . . . . . . . . Damage Inflicted 11722 | . 344 83 238 . 3785 1161 2547 3564 Player 2/Cogmind (%) 72 | . 72 42 38 . 74 58 78 80 Combat Hostiles Destroyed 50 | . 5 . 3 . 13 8 8 13 Player 2/Cogmind (%) 80 | . 100 . 75 . 86 88 80 76 Game ------ Seed ParticleAerolevGenerator Manual? 0 Play Time 00:52:02 Cumulative 1252.8 hours Start 2026.02.18 @ 14:09:19 End 2026.02.18 @ 15:01:55 Sessions 1 Manual Loads 0 Difficulty Rogue Special Mode AFD2020/Player2 Game No. 1539 Rogue 1255 Adventurer 124 Explorer 160 Win Type - Total 60 Types 46/0/8/4/1/0/0/1/0/0 Lore% 93 Gallery% 83 Achievement% 67 Wizard Run 0 Options --------- Layout 0 ASCII 0 Keyboard 1 Movement Numpad Keybinds 0 Fullscreen 2 Font 18/X11 Map View 76x50 Zoom Use 0% Tactical HUD 1 Map Filters NONE Filters NONE Steam 1 RUN: 9c6211d8-22d4-4da0-96b7-9a69b9250203